bitfinex-derivatives/quotes_SOLF0:USTF0_20250818
["timestamp","ask_amount","ask_price","bid_price","bid_amount"]
[1755506550333,3.13,181.44,181.4,4.55464003]
[1755506550527,3.13,181.45,181.41,2.95]
[1755506550726,3.13,181.47,181.44,2.95]
[1755506550931,3.13,181.46,181.41,4.55464003]
[1755506551134,3.13,181.44,181.42,2.95]
[1755506551435,3.13,181.44,181.41,4.55464003]
[1755506551631,3.13,181.44,181.43,2.95]
[1755506555230,3.13,181.51,181.43,2.95]
[1755506555431,3.13,181.49,181.43,2.95]
[1755506555628,3.13,181.49,181.41,4.59552833]
[1755506555629,134.32,181.52,181.44,4.55464003]
[1755506555942,3.13,181.5,181.45,2.95]
[1755506557233,3.9743307,181.49,181.44,2.98801186]
[1755506557439,3.13,181.48,181.44,2.98801186]
[1755506560241,3.13,181.48,181.45,2.95]
[1755506561739,3.13,181.48,181.46,2.95]
[1755506562541,3.13,181.48,181.47,2.95]
[1755506565046,3.13,181.48,181.46,2.95]
[1755506566551,4.08896828,181.55,181.46,2.95]
[1755506566752,146.85994753,181.54,181.46,2.95]
[1755506566944,8.47429502,181.53,181.46,2.95]
[1755506567248,3.13,181.51,181.48,0.03899886]
[1755506567548,3.13,181.53,181.5,2.95]
[1755506568043,3.13,181.52,181.5,2.95]
[1755506568250,3.13,181.52,181.48,0.03899886]
[1755506569044,3.13,181.52,181.49,2.95]
[1755506570652,3.13,181.52,181.48,0.03899886]
[1755506570854,6.04337989,181.52,181.48,2.98899886]
[1755506571154,3.96492412,181.51,181.48,2.98899886]
[1755506571356,3.13,181.5,181.48,2.98899886]
[1755506572156,3.17,181.49,181.48,0.03899886]
[1755506572349,3.17,181.53,181.48,0.03899886]
[1755506572551,3.17,181.52,181.48,0.03899886]
[1755506572753,3.17,181.52,181.49,3.03]
[1755506573153,134.18,181.54,181.49,5.94337989]
[1755506573357,3.17,181.53,181.5,3.03]
[1755506575858,134.18,181.54,181.5,3.03]
[1755506576158,3.17,181.53,181.5,3.03]
[1755506576562,3.17,181.53,181.51,3.03]
[1755506576952,3.17,181.53,181.49,3.03]
[1755506577360,3.17,181.53,181.5,3.03]
[1755506577657,3.17,181.53,181.49,3.03]
[1755506577859,3.17,181.53,181.48,3.06899886]
[1755506578457,3.17,181.53,181.49,3.03]
[1755506579754,3.17,181.53,181.48,3.06899886]
[1755506580156,3.96443612,181.52,181.48,0.03899886]
[1755506580460,7.13544539,181.51,181.48,0.03899886]
[1755506580655,3.17,181.5,181.48,0.03899886]
[1755506580961,4.551627,181.53,181.48,0.03899886]
[1755506580962,137.33,181.49,181.48,0.03899886]
[1755506581360,3.17,181.52,181.48,3.06899886]
[1755506581756,137.33,181.54,181.48,3.06899886]
[1755506581956,3.96539467,181.53,181.48,3.06899886]
[1755506582157,3.17,181.53,181.48,3.06899886]
[1755506584357,3.17,181.53,181.48,0.03899886]
[1755506584563,3.17,181.51,181.48,0.03899886]
[1755506584858,3.17,181.49,181.48,0.03899886]
[1755506585161,137.33,181.49,181.48,0.03899886]
[1755506585954,141.30063192,181.49,181.48,0.03899886]
[1755506589367,142.677729,181.49,181.48,0.03899886]
[1755506590665,141.30063192,181.49,181.48,3.06899886]
[1755506590967,134.16,181.5,181.48,3.06899886]
[1755506591165,134.24,181.5,181.48,3.06899886]
[1755506591360,134.24,181.5,181.49,3.03]
[1755506591572,141.38906949,181.5,181.49,3.03]
[1755506593173,138.21906949,181.5,181.49,3.03]
[1755506593868,3.97906949,181.5,181.49,3.03]
[1755506594072,134.18,181.53,181.49,3.03]
[1755506594273,3.96381916,181.52,181.49,3.03]
[1755506594474,134.18,181.53,181.49,3.03]
[1755506594674,3.96426493,181.52,181.49,3.03]
[1755506594874,134.18,181.53,181.49,3.03]
[1755506595176,3.96426493,181.52,181.49,3.03]
[1755506595374,3.17,181.51,181.49,3.03]
[1755506595575,137.35,181.53,181.49,3.03]
[1755506595876,3.17,181.52,181.49,3.03]
[1755506596674,134.18,181.53,181.49,3.03]
[1755506597575,137.35,181.53,181.49,3.03]
[1755506598372,3.17,181.52,181.49,3.03]
[1755506599180,3.17,181.51,181.49,3.03]
[1755506600277,134.18,181.53,181.49,3.03]
[1755506600577,3.17,181.5,181.49,3.03]
[1755506602176,3.17,181.5,181.48,3.06899886]
[1755506602377,137.51,181.49,181.48,0.03899886]
[1755506602583,3.13,181.49,181.48,3.05899886]
[1755506603280,3.13,181.49,181.48,0.03899886]
[1755506604180,3.13,181.49,181.48,3.05899886]
[1755506608790,3.13,181.49,181.48,0.03899886]
[1755506609481,7.09520302,181.49,181.48,0.03899886]
[1755506609985,8.47228673,181.49,181.48,0.03899886]
[1755506611788,12.89148332,181.49,181.48,0.03899886]
[1755506612901,3.13,181.48,181.41,3.02]
[1755506613193,3.13,181.46,181.41,3.02]
[1755506613394,3.96520302,181.45,181.42,3.02]
[1755506613581,3.13,181.43,181.42,3.02]
[1755506615798,3.13,181.43,181.37,3.02]
[1755506616095,3.13,181.42,181.37,3.02]
[1755506616496,3.13,181.42,181.38,3.02]
[1755506617196,3.96779149,181.41,181.38,3.02]
[1755506617394,4.551627,181.45,181.38,3.02]
[1755506617395,3.13,181.39,181.38,3.02]
[1755506617594,137.51,181.39,181.38,3.02]
[1755506634705,134.38,181.39,181.36,3.14]
[1755506634908,3.12,181.38,181.29,3.14]
[1755506642012,3.12,181.38,181.32,3.14]
[1755506642210,134.38,181.39,181.32,3.14]
[1755506642610,3.12,181.38,181.32,3.14]
[1755506656627,3.97553019,181.37,181.32,3.14]
[1755506656828,3.12,181.36,181.32,3.14]
[1755506657127,3.12,181.36,181.35,3.14]
[1755506657324,3.12,181.36,181.34,3.14]
[1755506659631,3.12,181.36,181.3,3.14]
[1755506666337,3.98302213,181.35,181.3,3.14]
[1755506666531,3.98302213,181.34,181.3,3.14]
[1755506666732,3.01,181.33,181.25,4.551627]
[1755506666930,3.01,181.33,181.31,3.01]
[1755506667136,3.01,181.33,181.32,3.01]
[1755506667638,3.01,181.33,181.31,3.01]
[1755506669240,3.01,181.33,181.29,3.01]
[1755506670330,3.01,181.33,181.24,95.07271865]
[1755506670535,3.01,181.33,181.3,3.01]
[1755506671639,3.01,181.33,181.31,3.01]
[1755506674042,3.01,181.38,181.31,3.01]
[1755506674241,5.4461212,181.37,181.31,3.01]
[1755506674436,3.01,181.35,181.31,3.01]
[1755506674640,3.01,181.33,181.32,3.01]
[1755506676654,3.01,181.33,181.23,9.1766834]
[1755506676655,3.01,181.33,181.23,3.01]
[1755506676836,7.07837703,181.33,181.23,3.01]
[1755506677040,4.551627,181.3,181.2,3.01]
[1755506677343,3.01,181.28,181.2,3.01]
[1755506677645,3.01,181.26,181.2,3.01]
[1755506678042,4.551627,181.3,181.16,10.068127]
[1755506678240,3.01,181.24,181.21,3.01]
[1755506679242,1.93857408,181.23,181.09,5.513]
[1755506679437,3.01,181.2,181.11,5.513]
[1755506679746,3.01,181.18,181.12,3.01]
[1755506679947,3.01,181.16,181.12,3.01]
[1755506680448,3.01,181.16,181.13,3.01]
[1755506682349,3.04709933,181.16,181.13,3.04757982]
[1755506682747,0.03709933,181.16,181.13,0.03757982]
[1755506682947,0.03709933,181.16,181.14,3.01]
[1755506683149,3.01,181.21,181.14,3.01]
[1755506683150,3.01,181.23,181.14,3.01]
[1755506683446,3.01,181.26,181.18,3.01]
[1755506683644,3.01,181.24,181.18,3.01]
[1755506684442,136.36,181.27,181.2,3.01]
[1755506684647,370.46,181.28,181.2,3.01]
[1755506684648,3.01,181.23,181.2,3.01]
[1755506686244,3.01,181.22,181.19,0.04218074]
[1755506686447,506.86,181.28,181.19,3.05218074]
[1755506686643,3.01,181.26,181.19,3.05218074]
[1755506686855,3.01,181.24,181.2,3.01]
[1755506688052,3.01,181.24,181.19,0.04218074]
[1755506688053,1.37888475,181.23,181.19,0.04218074]
[1755506688252,4.38890987,181.22,181.19,0.04218074]
[1755506688551,3.01,181.22,181.19,0.04218074]
[1755506689557,3.01,181.22,181.19,3.05218074]
[1755506689758,3.01,181.21,181.2,3.01]
[1755506690251,4.551627,181.27,181.2,3.01]
[1755506690454,5.44973823,181.26,181.2,3.01]
[1755506690652,1.378935,181.25,181.2,3.01]
[1755506690854,3.01,181.23,181.2,3.01]
[1755506691156,3.01,181.21,181.2,3.01]
[1755506691356,4.388935,181.21,181.2,3.01]
[1755506692355,3.01,181.21,181.2,3.01]
[1755506693252,506.86,181.28,181.2,3.01]
[1755506693253,509.74,181.28,181.2,3.01]
[1755506693465,2.88,181.26,181.2,3.01]
[1755506693650,1.37888475,181.25,181.2,3.01]
[1755506693960,2.88,181.23,181.2,3.01]
[1755506694356,2.88,181.22,181.2,3.01]
[1755506696562,1.37883451,181.21,181.2,3.01]
[1755506696857,2.88,181.27,181.2,3.01]
[1755506697058,2.88,181.25,181.2,3.01]
[1755506697366,2.88,181.22,181.2,3.01]
[1755506697556,2.88,181.22,181.2,3.12]
[1755506697761,2.88,181.22,181.21,3.12]
[1755506697964,4.25880849,181.22,181.21,3.12]
[1755506699265,2.88,181.21,181.19,0.04218074]
[1755506699862,1.37892251,181.2,181.19,0.04218074]
[1755506700062,4.25892251,181.2,181.19,0.04218074]
[1755506700769,8.6402858,181.2,181.19,0.04218074]
[1755506703666,144.8602858,181.2,181.19,0.04218074]
[1755506704563,2.88,181.2,181.19,0.04218074]
[1755506704770,4.25893825,181.2,181.19,3.16218074]
[1755506705072,8.63863296,181.2,181.19,3.16218074]
[1755506705267,8.63873347,181.2,181.19,3.16218074]
[1755506708475,13.75036047,181.2,181.19,0.04218074]
[1755506708674,10.87036047,181.2,181.13,3.12]
[1755506708875,2.88,181.18,181.13,3.12]
[1755506709170,2.88,181.16,181.13,3.12]
[1755506710272,1.37921856,181.15,181.13,3.12]
[1755506710475,2.88,181.14,181.13,3.12]
[1755506714569,2.88,181.16,181.13,3.12]
[1755506714774,2.88,181.15,181.1,4.551627]
[1755506714982,2.88,181.15,181.14,3.12]
[1755506715284,8.65146239,181.15,181.12,3.12]
[1755506715468,2.88,181.14,181.13,3.12]
[1755506715675,5.77154851,181.14,181.08,3.12]
[1755506715868,136.76,181.17,181.08,3.12]
[1755506715869,2.88,181.12,181.08,3.12]
[1755506716078,2.88,181.14,181.08,3.12]
[1755506716286,8.6541554,181.13,181.08,3.12]
[1755506716578,5.7741554,181.12,181.08,3.12]
[1755506716783,2.88,181.13,181.08,3.12]
[1755506716984,5.77377047,181.12,181.08,3.12]
[1755506717176,2.88,181.13,181.08,3.12]
[1755506717376,5.77589647,181.12,181.08,3.12]
[1755506717571,2.88,181.13,181.08,3.12]
[1755506717773,8.65533403,181.12,181.08,3.12]
[1755506717975,2.88,181.12,181.08,3.12]
[1755506718878,136.76,181.17,181.08,3.12]
[1755506719078,5.77742108,181.16,181.08,3.12]
[1755506719381,136.76,181.17,181.08,3.12]
[1755506719382,2.88,181.14,181.08,3.12]
[1755506719578,5.77742108,181.13,181.08,7.671627]
[1755506719775,5.77742108,181.12,181.09,3.12]
[1755506719978,2.88,181.16,181.1,3.12]
[1755506720179,142.66418915,181.19,181.1,3.12]
[1755506720180,8.66251776,181.15,181.1,3.12]
[1755506720377,8.66251776,181.14,181.1,3.12]
[1755506720574,5.78251776,181.13,181.1,3.12]
[1755506720770,2.88,181.14,181.1,3.12]
[1755506720974,5.7828877,181.13,181.1,3.12]
[1755506721178,4.40830946,181.12,181.1,3.12]
[1755506721379,2.88,181.14,181.1,3.12]
[1755506721576,5.78758894,181.13,181.1,3.12]
[1755506721781,2.88,181.13,181.1,3.12]
[1755506722173,4.41022704,181.12,181.1,3.12]
[1755506722373,3.09,181.14,181.1,3.12]
[1755506722577,5.78964295,181.13,181.11,3.04]
[1755506722774,7.50038186,181.12,181.11,3.04]
[1755506722979,8.87970625,181.12,181.11,3.04]
[1755506723280,3.09,181.11,181.1,3.04]
[1755506723482,8.87970625,181.11,181.1,3.04]
[1755506723682,5.78970625,181.11,181.1,3.04]
[1755506723983,4.41038186,181.11,181.1,3.04]
[1755506725786,7.50038186,181.11,181.1,3.04]
[1755506728085,3.09,181.11,181.1,3.04]
[1755506733490,3.09,181.18,181.1,3.04]
[1755506733690,3.09,181.16,181.1,3.04]
[1755506733991,3.09,181.14,181.1,3.04]
[1755506734193,3.09,181.12,181.1,3.04]
[1755506734889,3.09,181.12,181.06,5.5199]
[1755506734890,3.09,181.12,181.11,3.04]
[1755506735389,10.73581615,181.19,181.11,3.04]
[1755506735592,5.75167052,181.18,181.11,3.04]
[1755506735787,3.09,181.12,181.11,3.04]
[1755506737188,3.09,181.12,181.07,3.04]
[1755506737390,3.09,181.12,181.08,3.04]
[1755506737587,3.09,181.12,181.06,3.04]
[1755506738190,4.37305648,181.11,181.06,3.04]
[1755506738390,3.09,181.09,181.06,3.04]
[1755506738590,4.551627,181.18,181.06,3.04]
[1755506738893,3.09,181.08,181.06,3.04]
[1755506741100,10.73581615,181.18,181.06,3.04]
[1755506741295,3.09,181.07,181.06,3.04]
[1755506741498,10.73581615,181.18,181.06,3.04]
[1755506741698,3.09,181.16,181.06,3.04]
[1755506741998,3.09,181.14,181.04,3.04]
[1755506742198,3.09,181.12,181.04,3.04]
[1755506742401,3.09,181.1,181.04,3.04]
[1755506742699,3.09,181.08,181.04,3.04]
[1755506742894,4.551627,181.15,181.04,3.04]
[1755506743096,3.09,181.13,181.04,3.04]
[1755506743290,5.7549517,181.12,181.04,3.04]
[1755506743499,3.09,181.1,181.04,3.04]
[1755506743795,4.37518769,181.09,181.04,3.04]
[1755506743995,3.09,181.1,181.04,3.04]
[1755506744293,7.46705799,181.09,181.04,8.5602]
[1755506744497,3.09,181.09,181.05,3.04]
[1755506745104,3.09,181.09,181.06,3.04]
[1755506746700,10.73581615,181.18,181.06,3.04]
[1755506747001,3.09,181.08,181.06,3.04]
[1755506750604,6.18418915,181.16,181.06,3.04]
[1755506750801,3.09,181.07,181.06,3.04]
[1755506750995,27.27581615,181.18,181.04,3.04]
[1755506751201,145.59628372,181.21,181.03,3.04]
[1755506751202,3.09,181.14,181.03,3.04]
[1755506751504,3.09,181.12,181.03,3.04]
[1755506751696,3.09,181.1,181.03,3.04]
[1755506751904,3.09,181.08,181.03,3.04]
[1755506752099,4.37694288,181.07,181.03,3.04]
[1755506752305,3.09,181.05,181.03,3.04]
[1755506752500,3.09,181.14,181.02,3.12]
[1755506752705,3.09,181.12,181.02,3.12]
[1755506753008,3.09,181.1,181.02,3.12]
[1755506753203,3.09,181.08,181.02,3.12]
[1755506753406,4.37808658,181.07,181.02,3.12]
[1755506753702,3.09,181.04,181.02,3.12]
[1755506753902,3.09,181.06,181.02,3.12]
[1755506754107,3.09,181.05,181.02,3.12]
[1755506755210,4.551627,181.15,181.02,4.551627]
[1755506755508,3.09,181.04,181.03,3.12]
[1755506758515,4.37821055,181.04,180.99,3.12]
[1755506758719,3.09,181.03,181.0,3.12]
[1755506759613,3.09,181.03,180.96,10.074627]
[1755506759809,3.09,181.03,180.99,3.12]
[1755506760206,3.09,181.08,180.96,3.12]
[1755506760407,3.09,181.06,180.93,5.524]
[1755506760616,3.09,181.04,180.95,3.12]
[1755506760915,4.551627,181.09,180.94,4.551627]
[1755506760916,3.09,181.02,180.94,4.551627]
[1755506761113,3.09,181.02,180.95,3.12]
[1755506762410,3.09,181.02,180.94,4.551627]
[1755506762612,3.09,181.02,180.95,3.12]
[1755506763006,3.09,181.0,180.94,4.551627]
[1755506763616,3.09,181.0,180.95,3.12]
[1755506763916,3.09,181.0,180.96,3.12]
[1755506764810,3.09,181.0,180.94,4.551627]
[1755506765009,3.09,181.06,180.95,3.12]
[1755506765214,3.09,181.04,180.98,3.12]
[1755506765416,3.09,181.02,180.98,3.12]
[1755506766012,3.09,181.0,180.98,3.12]
[1755506767418,3.09,181.06,180.98,3.12]
[1755506767614,3.09,181.04,181.02,3.12]
[1755506767912,3.09,181.04,181.03,3.12]
[1755506768114,3.09,181.06,181.03,3.12]
[1755506768314,122.80271983,181.07,181.03,3.12]
[1755506768512,371.0,181.11,181.04,4.551627]
[1755506768513,3.09,181.09,181.04,4.551627]
[1755506768817,3.09,181.08,181.05,3.12]
[1755506769221,371.0,181.11,181.04,4.551627]
[1755506769425,3.09,181.09,181.05,3.12]
[1755506769714,3.09,181.09,181.0,5.5219]
[1755506769912,3.09,181.07,181.01,3.12]
[1755506770109,3.09,181.05,181.02,3.12]
[1755506770314,3.09,181.05,181.0,3.12]
[1755506770914,3.09,181.1,181.0,3.12]
[1755506771115,3.09,181.08,181.02,4.551627]
[1755506771313,3.09,181.05,181.03,3.12]
[1755506771515,3.09,181.05,181.0,3.12]
[1755506771716,4.33726317,181.04,181.01,3.12]
[1755506771917,3.09,181.03,180.97,4.551627]
[1755506772222,3.09,181.01,180.92,3.12]
[1755506772417,3.09,181.01,180.96,3.12]
[1755506773523,3.09,181.01,180.95,4.551627]
[1755506773717,3.09,181.01,180.97,3.12]
[1755506774318,3.09,181.01,180.95,4.551627]
[1755506774519,3.09,181.01,180.98,3.12]
[1755506777023,3.09,181.01,180.99,3.12]
[1755506778626,3.09,181.01,180.95,4.551627]
[1755506778825,3.09,181.01,180.97,3.12]
[1755506779127,3.09,181.01,180.78,144.1914219]
[1755506779326,3.09,181.01,180.92,3.12]
[1755506780436,3.09,181.01,180.94,3.12]
[1755506781423,4.33650861,181.0,180.94,3.12]
[1755506781618,3.09,180.99,180.94,3.12]
[1755506781820,3.09,180.99,180.92,4.551627]
[1755506782018,154.34,181.08,180.86,3.12]
[1755506782019,3.09,180.97,180.86,3.12]
[1755506782220,2.98,180.95,180.86,3.12]
[1755506782425,2.98,180.95,180.78,131.92093773]
[1755506782426,2.98,180.95,180.87,2.98]
[1755506783224,4.33699831,180.94,180.87,2.98]
[1755506783536,2.98,180.93,180.87,2.98]
[1755506784630,2.98,180.93,180.85,4.551627]
[1755506785034,4.33329325,180.92,180.86,2.98]
[1755506785334,2.98,180.91,180.86,2.98]
[1755506785530,2.98,180.91,180.82,4.551627]
[1755506785831,2.98,180.91,180.83,2.98]
[1755506786035,2.98,180.91,180.82,4.551627]
[1755506786036,2.98,180.93,180.86,2.98]
[1755506790838,2.98,180.95,180.9,2.98]
[1755506791432,2.98,180.95,180.91,2.98]
[1755506792230,2.98,180.97,180.92,2.98]
[1755506792738,2.98,181.03,180.95,2.98]
[1755506792940,4.24656763,181.02,180.95,2.98]
[1755506793141,2.98,181.01,180.95,2.98]
[1755506795435,2.98,181.08,180.98,2.98]
[1755506795640,2.98,181.06,180.98,2.98]
[1755506795937,2.98,181.04,180.98,2.98]
[1755506796548,2.98,181.04,181.0,2.98]
[1755506796747,0.03993001,181.03,181.01,2.98]
[1755506797242,122.56486013,181.09,181.01,2.98]
[1755506797441,0.03927063,181.04,181.01,2.98]
[1755506797833,0.03927063,181.04,181.01,5.5214]
[1755506798042,0.03927063,181.04,181.02,2.98]
[1755506798244,3.01927063,181.04,180.99,4.551627]
[1755506798548,0.03927063,181.04,181.01,2.98]
[1755506798838,122.56486013,181.09,180.98,2.98]
[1755506799041,5.63091428,181.08,180.98,2.98]
[1755506799243,4.25069918,181.07,180.98,2.98]
[1755506799542,2.98,181.06,180.98,2.98]
[1755506802045,2.98,181.04,180.98,2.98]
[1755506802341,2.98,181.02,180.98,2.98]
[1755506802747,2.98,181.02,180.96,2.98]
[1755506803241,4.25631111,181.01,180.96,2.98]
[1755506803547,2.98,181.06,180.96,2.98]
[1755506803743,2.98,181.04,180.96,2.98]
[1755506803944,4.25621502,181.03,180.96,2.98]
[1755506804143,2.98,181.01,180.96,2.98]
[1755506804546,4.551627,181.07,180.96,2.98]
[1755506804547,2.98,181.03,180.96,2.98]
[1755506805141,2.98,181.03,180.96,5.5229]
[1755506805347,2.98,181.03,180.97,2.98]
[1755506807246,2.98,181.03,180.98,4.551627]
[1755506807448,2.98,181.05,180.99,5.5219]
[1755506807748,2.98,181.05,180.98,4.551627]
[1755506807749,2.98,181.05,181.0,2.98]
[1755506808055,2.98,181.1,181.02,2.98]
[1755506808248,2.98,181.08,181.02,2.98]
[1755506813850,4.23662139,181.07,180.95,4.551627]
[1755506814154,2.95,181.06,180.96,2.99]
[1755506814548,2.95,181.06,180.98,2.99]
[1755506815251,2.95,181.06,180.99,2.99]
[1755506815456,2.95,181.06,181.01,4.551627]
[1755506815658,371.0,181.11,181.01,4.551627]
[1755506815856,2.95,181.09,181.02,2.99]
[1755506816057,371.0,181.11,181.02,2.99]
[1755506816058,2.95,181.07,181.02,2.99]
[1755506817154,2.95,181.07,181.03,2.99]
[1755506817751,2.95,181.07,181.01,2.99]
[1755506820061,140.47,181.07,181.01,2.99]
[1755506820363,140.47,181.07,180.96,2.99]
[1755506820364,2.95,181.05,180.96,2.99]
[1755506820857,2.95,181.05,180.97,2.99]
[1755506821457,2.95,181.05,180.98,2.99]
[1755506822364,2.95,181.05,180.99,2.99]
[1755506824466,2.95,181.05,180.99,8.5119]
[1755506824665,2.95,181.05,181.0,2.99]
[1755506824871,2.95,181.04,181.0,2.99]
[1755506825072,2.95,181.03,181.0,2.99]
[1755506827864,2.95,181.06,180.96,2.99]
[1755506828061,2.95,181.04,180.88,2.99]
[1755506828366,2.95,181.01,180.91,5.5242]
[1755506828566,2.95,181.01,180.92,2.99]
[1755506831271,4.23186124,181.0,180.92,2.99]
[1755506831473,2.95,180.99,180.92,2.99]
[1755506831673,2.95,180.99,180.92,8.5139]
[1755506831866,2.95,180.99,180.93,2.99]
[1755506833165,2.95,181.01,180.95,4.551627]
[1755506833366,2.95,181.03,180.96,2.99]
[1755506833574,2.95,181.03,180.99,2.99]
[1755506833774,2.95,181.05,180.99,2.99]
[1755506834670,2.95,181.05,181.0,2.99]
[1755506834866,2.95,181.04,181.0,2.99]
[1755506835278,2.95,181.04,180.98,7.541627]
[1755506835279,4.22369539,181.03,180.98,7.541627]
[1755506835480,2.95,181.02,180.99,2.99]
[1755506835676,2.95,181.08,180.99,2.99]
[1755506835978,2.95,181.06,180.99,2.99]
[1755506836175,5.6039287,181.05,180.99,2.99]
[1755506836373,140.82157831,181.09,180.99,2.99]
[1755506836374,7.17369766,181.04,180.99,2.99]
[1755506836680,2.95,181.02,180.99,2.99]
[1755506838472,2.95,181.01,180.96,5.5228]
[1755506838676,2.95,181.01,181.0,2.99]
[1755506840073,2.95,181.03,181.0,2.99]
[1755506840275,140.82157831,181.09,181.0,2.99]
[1755506840476,2.95,181.04,181.0,2.99]
[1755506840778,2.95,181.06,181.0,2.99]
[1755506840977,4.22718545,181.05,181.0,2.99]
[1755506841177,2.95,181.05,181.0,2.99]
[1755506841377,2.98961429,181.05,181.0,5.5215]
[1755506841577,0.03961429,181.05,181.01,2.99]
[1755506841972,2.95,181.08,181.01,2.99]
[1755506842175,140.44135252,181.13,181.03,2.92]
[1755506842379,2.96,181.07,181.03,2.92]
[1755506842576,2.96,181.09,181.03,2.92]
[1755506842880,4.22566158,181.08,181.04,2.92]
[1755506843070,2.96,181.07,181.04,2.92]
[1755506843269,140.44135252,181.13,181.04,2.92]
[1755506843478,2.96,181.06,181.04,2.92]
[1755506843778,2.96,181.06,180.93,11.0473]
[1755506843779,2.96,181.06,181.05,2.92]
[1755506843979,140.44135252,181.13,181.01,5.5213]
[1755506844180,2.96,181.05,181.04,2.92]
[1755506844381,2.96,181.05,180.95,7.11510958]
[1755506844583,2.96,181.05,181.01,2.92]
[1755506845180,2.96,181.05,181.02,2.92]
[1755506845582,6.18418915,181.12,181.03,2.92]
[1755506845886,2.96,181.05,181.04,2.92]
[1755506846084,2.96,181.07,181.04,2.92]
[1755506847083,4.2240214,181.06,181.0,2.92]
[1755506847277,2.96,181.05,180.98,5.5222]
[1755506847581,2.96,181.05,181.02,2.92]
[1755506847884,2.96,181.12,181.0,2.92]
[1755506848082,2.96,181.1,181.0,2.92]
[1755506848272,5.60395966,181.09,181.0,2.92]
[1755506848472,2.96,181.07,181.01,2.92]
[1755506848677,4.22392998,181.06,181.01,2.92]
[1755506848873,2.96,181.12,181.01,2.92]
[1755506849075,7.14554167,181.13,181.01,2.92]
[1755506849076,2.96,181.1,181.01,2.92]
[1755506849275,2.96,181.08,181.01,2.92]
[1755506849483,4.22430371,181.07,181.01,5.5213]
[1755506849682,2.96,181.05,180.95,7.11510958]
[1755506849876,2.96,181.04,181.03,2.92]
[1755506850178,2.96,181.12,181.0,2.92]
[1755506850378,2.96,181.1,181.0,2.92]
[1755506850574,5.60465105,181.09,181.0,2.92]
[1755506850879,2.96,181.07,181.0,2.92]
[1755506851081,2.96,181.05,181.0,2.92]
[1755506855183,2.96,181.12,181.0,2.92]
[1755506855481,2.96,181.1,181.0,2.92]
[1755506855684,5.57943271,181.09,181.0,2.92]
[1755506855882,5.57943271,181.08,181.0,2.92]
[1755506856083,5.57943271,181.07,181.0,2.92]